bitfinex/quotes_SOLUSD_20240818
["timestamp","ask_amount","ask_price","bid_price","bid_amount"]
[1723940856902,0.8782211,142.01,142.0,1.40826122]
[1723940858699,0.8782211,142.01,141.99,6.6343]
[1723940873948,0.8782211,142.01,142.0,1.19599889]
[1723940874127,0.8782211,142.01,142.0,1.32148889]
[1723940874318,0.8782211,142.01,142.0,0.37647]
[1723940874842,0.8782211,142.01,142.0,20.50196]
[1723940875015,0.8782211,142.01,142.0,65.50196]
[1723940875334,0.8782211,142.01,142.0,81.03456]
[1723940879527,0.8782211,142.01,142.0,36.03456]
[1723940881142,0.8782211,142.01,142.0,81.03456]
[1723940881339,3.5181,142.12,142.01,0.12549]
[1723940881543,59.2281,142.12,142.03,10.71]
[1723940881728,59.2281,142.12,142.04,20.12549]
[1723940882336,55.71,142.12,142.05,1.40770179]
[1723940882542,55.71,142.12,142.04,20.12549]
[1723940882760,59.2281,142.12,142.04,20.12549]
[1723940883246,55.71,142.12,142.04,20.12549]
[1723940884071,0.8782211,142.15,142.09,10.71]
[1723940884345,0.8782211,142.15,142.1,20.0]
[1723940889028,0.8782211,142.15,142.08,0.12549]
[1723940889226,0.8782211,142.15,142.09,0.12549]
[1723940889455,0.8782211,142.15,142.09,20.25098]
[1723940889834,10.71,142.14,142.07,0.12549]
[1723940890034,10.71,142.14,142.06,0.12549]
[1723940890759,10.71,142.14,142.05,21.7706]
[1723940890760,10.71,142.12,142.05,21.7706]
[1723940892259,10.71,142.12,142.06,20.0]
[1723940895048,42.1647111,142.15,142.07,0.12549]
[1723940895049,17.3318211,142.15,142.07,0.12549]
[1723940895241,28.0418211,142.15,142.07,11.21196]
[1723940895445,28.0418211,142.15,142.08,20.0]
[1723940895758,17.3318211,142.15,142.08,20.0]
[1723940896343,17.3318211,142.15,142.09,0.12549]
[1723940897362,10.71,142.14,142.08,20.0]
[1723940897663,10.71,142.14,142.06,20.12549]
[1723940897853,10.71,142.14,142.07,0.12549]
[1723940900560,31.9,142.14,142.07,0.12549]
[1723940901149,17.3318211,142.15,142.07,0.12549]
[1723940901549,17.3318211,142.15,142.08,0.12549]
[1723940901775,17.3318211,142.15,142.08,0.25098]
[1723940901974,17.3318211,142.15,142.09,0.12549]
[1723940902159,0.8782211,142.15,142.09,0.12549]
[1723940905562,0.8782211,142.15,142.08,20.0]
[1723940905755,11.5882211,142.15,142.06,20.0]
[1723940906072,45.0,142.14,142.06,20.0]
[1723940906844,11.5882211,142.15,142.06,20.0]
[1723940906845,0.8782211,142.15,142.09,10.71]
[1723940907069,0.8782211,142.15,142.1,20.0]
[1723940907249,0.8782211,142.15,142.11,12.11712119]
[1723940907443,0.8782211,142.15,142.12,20.0]
[1723940907862,0.8782211,142.15,142.12,50.0]
[1723940908075,0.8782211,142.15,142.12,20.0]
[1723940910782,0.8782211,142.15,142.1,20.0]
[1723940912867,0.8782211,142.15,142.08,22.1555]
[1723940913068,45.8782211,142.15,142.08,22.1555]
[1723940914183,0.8782211,142.15,142.09,20.0]
[1723940916072,0.8782211,142.15,142.1,0.12549]
[1723940918671,0.8782211,142.15,142.1,0.25098]
[1723940920495,0.8782211,142.15,142.11,0.12549]
[1723940920669,0.8782211,142.15,142.11,0.25098]
[1723940923696,0.8782211,142.15,142.12,0.12549]
[1723940928313,0.8782211,142.15,142.11,0.12549]
[1723940930781,0.8782211,142.15,142.11,0.25098]
[1723940934407,0.8782211,142.15,142.11,0.12549]
[1723940934617,0.8782211,142.15,142.1,0.25098]
[1723940941898,0.8782211,142.15,142.09,20.12549]
[1723940942098,0.8782211,142.15,142.08,20.12549]
[1723940942327,26.8274211,142.15,142.08,20.0]
[1723940942506,26.8274211,142.15,142.05,401.01]
[1723940943708,26.8274211,142.15,142.07,0.12549]
[1723940943908,26.8274211,142.15,142.07,0.25098]
[1723940944098,26.8274211,142.15,142.09,0.12549]
[1723940944509,16.1174211,142.15,142.09,0.12549]
[1723940945624,16.1174211,142.15,142.09,10.96098]
[1723940945836,16.1174211,142.15,142.1,20.25098]
[1723940946015,16.1174211,142.15,142.11,0.12549]
[1723940953021,16.1174211,142.15,142.1,0.25098]
[1723940953636,16.1174211,142.15,142.11,0.12549]
[1723940957150,16.1174211,142.15,142.08,30.71]
[1723940957336,16.1174211,142.15,142.07,390.3]
[1723940958346,16.1174211,142.15,142.07,401.01]
[1723940958559,26.8274211,142.15,142.08,0.37647]
[1723940958755,26.8274211,142.15,142.08,20.37647]
[1723940967455,6.4583,142.14,142.08,20.37647]
[1723940968171,6.4583,142.14,142.08,20.25098]
[1723940969541,6.4583,142.14,142.08,20.12549]
[1723940969742,6.4583,142.14,142.08,20.0]
[1723940971973,6.4583,142.14,142.09,0.12549]
[1723940972176,6.4583,142.14,142.09,0.25098]
[1723940972679,6.4583,142.14,142.09,0.12549]
[1723940975769,15.2406,142.13,142.07,390.3]
[1723940976961,15.2406,142.13,142.08,20.0]
[1723940983275,15.2406,142.13,142.07,390.3]
[1723940985691,15.2406,142.13,142.08,0.25098]
[1723940990217,15.2406,142.13,142.08,20.25098]
[1723940994210,15.2406,142.13,142.08,20.0]
[1723940997114,15.2406,142.13,142.06,20.12549]
[1723940997317,15.2406,142.13,142.07,0.25098]
[1723940999318,15.2406,142.13,142.07,30.25098]
[1723940999523,15.2406,142.13,142.08,20.0]
[1723941000402,10.71,142.12,142.08,20.0]
[1723941000617,16.4771,142.09,142.02,7.36204978]
[1723941000921,10.71,142.07,141.97,19.14755585]
[1723941001123,10.71,142.07,141.98,30.0]
[1723941001332,16.4771,142.09,142.01,10.71]
[1723941001539,16.4771,142.09,142.03,10.71]
[1723941001837,16.4771,142.09,142.04,9.84507326]
[1723941002026,16.4771,142.09,142.04,0.12549]
[1723941002211,16.4771,142.09,142.04,0.50196]
[1723941002606,16.4771,142.09,142.03,10.71]
[1723941002832,16.4771,142.09,142.04,20.0]
[1723941003023,16.4771,142.09,142.02,20.0]
[1723941003745,27.1871,142.09,142.02,20.0]
[1723941004337,27.1871,142.09,142.03,0.12549]
[1723941005333,27.1871,142.09,142.02,0.25098]
[1723941005716,27.1871,142.09,142.03,0.12549]
[1723941008231,27.1871,142.09,142.03,20.12549]
[1723941008425,27.1871,142.09,142.04,0.12549]
[1723941008619,27.1871,142.09,142.03,0.12549]
[1723941009510,16.4771,142.09,142.04,0.12549]
[1723941009840,16.4771,142.09,142.04,65.25098]
[1723941010025,16.4771,142.09,142.05,0.25098]
[1723941010227,16.4771,142.09,142.06,0.12549]
[1723941011622,16.4771,142.09,142.06,0.25098]
[1723941011826,16.4771,142.09,142.07,0.12549]
[1723941012018,21.5398,142.14,142.07,0.37647]
[1723941012234,21.5398,142.14,142.08,0.25098]
[1723941012443,21.5398,142.14,142.08,20.25098]
[1723941013416,21.5398,142.14,142.09,0.37647]
[1723941013615,21.5398,142.14,142.1,0.12549]
[1723941016922,15.4422,142.14,142.1,0.25098]
[1723941018431,0.8782211,142.15,142.11,10.71]
[1723941018638,0.8782211,142.15,142.12,45.37647]
[1723941018835,0.8782211,142.15,142.13,1.53218387]
[1723941019333,0.8782211,142.15,142.14,0.25098]
[1723941020526,0.8782211,142.15,142.14,0.37647]
[1723941020924,0.8782211,142.15,142.14,0.25098]
[1723941021122,0.8782211,142.15,142.14,0.12549]
[1723941021331,0.8782211,142.15,142.13,0.12549]
[1723941021524,0.8782211,142.15,142.13,0.25098]
[1723941022230,0.8782211,142.15,142.13,0.12549]
[1723941022548,0.8782211,142.15,142.09,10.71]
[1723941022549,0.8782211,142.15,142.11,0.12549]
[1723941022846,0.8782211,142.15,142.11,0.37647]
[1723941023046,0.8782211,142.15,142.1,20.0]
[1723941023455,0.8782211,142.15,142.11,1.40708274]
[1723941023749,0.8782211,142.15,142.1,20.0]
[1723941024768,0.8782211,142.15,142.11,0.12549]
[1723941025057,0.8782211,142.15,142.1,20.0]
[1723941025227,7.4903211,142.15,142.06,10.71]
[1723941026648,7.4903211,142.15,142.07,45.50196]
[1723941026855,7.4903211,142.15,142.07,65.50196]
[1723941032043,15.2744,142.14,142.07,65.50196]
[1723941034437,15.2744,142.14,142.09,0.12549]
[1723941034778,15.2744,142.14,142.09,20.50196]
[1723941036676,15.2744,142.14,142.11,0.12549]
[1723941036840,15.2744,142.14,142.11,20.50196]
[1723941042253,15.2744,142.14,142.11,20.25098]
[1723941042457,15.2744,142.14,142.11,0.25098]
[1723941042668,15.2744,142.14,142.1,0.37647]
[1723941044063,15.2744,142.14,142.05,401.01]
[1723941045168,10.71,142.13,142.05,390.3]
[1723941045357,6.2043,142.1,142.05,390.3]
[1723941047292,6.2043,142.1,142.06,20.0]
[1723941051794,6.2043,142.1,142.07,0.25098]
[1723941057002,6.2043,142.1,142.07,0.12549]
[1723941057181,6.2043,142.1,142.06,20.0]
[1723941065816,15.2351,142.12,142.07,0.25098]
[1723941067106,15.2351,142.12,142.07,0.12549]
[1723941070715,15.2351,142.12,142.07,0.37647]
[1723941071504,15.2351,142.12,142.08,0.12549]
[1723941071709,15.2351,142.12,142.08,0.37647]
[1723941072014,15.2351,142.12,142.09,0.12549]
[1723941072222,15.2351,142.12,142.1,0.12549]
[1723941072398,15.2351,142.12,142.1,20.37647]
[1723941072585,15.2351,142.12,142.11,0.12549]
[1723941072786,6.1687,142.14,142.11,0.25098]
[1723941073820,6.1687,142.14,142.1,20.0]
[1723941074020,6.1687,142.14,142.07,0.12549]
[1723941074197,6.1687,142.14,142.07,30.50196]
[1723941074398,6.1687,142.14,142.08,20.0]
[1723941074701,6.1687,142.14,142.09,0.12549]
[1723941075997,6.1687,142.14,142.09,20.37647]
[1723941076222,6.1687,142.14,142.1,0.12549]
[1723941077718,6.1687,142.14,142.09,20.25098]
[1723941077893,6.1687,142.14,142.09,0.12549]
[1723941078094,6.1687,142.14,142.08,20.50196]
[1723941081502,6.1687,142.14,142.09,0.12549]
[1723941082194,6.1687,142.14,142.09,45.12549]
[1723941082401,6.1687,142.14,142.1,20.37647]
[1723941084428,0.8782211,142.15,142.1,20.37647]
[1723941094715,0.8782211,142.15,142.11,30.0]
[1723941094899,0.8782211,142.15,142.12,20.0]
[1723941095908,0.8782211,142.15,142.1,20.37647]
[1723941098821,0.8782211,142.15,142.11,0.12549]
[1723941099007,0.8782211,142.15,142.11,45.12549]
[1723941099315,0.8782211,142.15,142.12,20.37647]
[1723941100712,0.8782211,142.15,142.12,20.0]
[1723941100922,0.8782211,142.15,142.09,20.0]
[1723941102013,0.8782211,142.15,142.1,0.12549]
[1723941102534,0.8782211,142.15,142.1,0.25098]
[1723941102731,0.8782211,142.15,142.11,0.12549]
[1723941105433,0.8782211,142.15,142.11,0.25098]
[1723941105647,0.8782211,142.15,142.12,0.12549]
[1723941107747,0.8782211,142.15,142.12,0.25098]
[1723941109130,0.8782211,142.15,142.13,0.12549]
[1723941119459,0.8782211,142.15,142.12,0.12549]
[1723941119662,0.8782211,142.15,142.12,0.25098]
[1723941123446,0.8782211,142.15,142.11,20.0]
[1723941123664,0.8782211,142.15,142.08,20.0]
[1723941124448,0.8782211,142.15,142.08,30.71]
[1723941124878,0.8782211,142.15,142.09,0.50196]
[1723941125053,0.8782211,142.15,142.09,45.50196]
[1723941125370,0.8782211,142.15,142.11,0.12549]
[1723941125575,0.8782211,142.15,142.11,0.50196]
[1723941128867,0.8782211,142.15,142.1,20.0]
[1723941129070,0.8782211,142.15,142.09,20.0]
[1723941130364,0.8782211,142.15,142.1,0.25098]
[1723941132781,0.8782211,142.15,142.11,0.25098]
[1723941132978,0.8782211,142.15,142.12,0.25098]
[1723941133477,15.7681211,142.16,142.12,0.12549]
[1723941133687,15.7681211,142.16,142.09,20.0]
[1723941133977,15.7681211,142.16,142.1,0.25098]
[1723941136987,26.4781211,142.16,142.1,0.12549]
[1723941137190,21.6772,142.13,142.07,22.29000074]
[1723941137481,21.6772,142.13,142.07,20.0]
[1723941137658,21.6772,142.13,142.08,30.0]
[1723941138259,21.6772,142.13,142.06,0.12549]
[1723941138459,21.6772,142.13,142.06,45.50196]
[1723941139186,21.6772,142.13,142.07,20.0]
[1723941139367,21.6772,142.13,142.08,0.25098]
[1723941141995,21.6772,142.13,142.08,1.65826658]
[1723941142772,21.6772,142.13,142.08,0.25098]
[1723941144889,21.6772,142.13,142.09,0.25098]
[1723941145190,21.6772,142.13,142.1,0.25098]
[1723941146965,21.6772,142.13,142.1,0.12549]
[1723941147585,21.6772,142.13,142.09,0.25098]
[1723941152275,21.6772,142.13,142.09,0.12549]
[1723941152475,21.6772,142.13,142.08,20.0]
[1723941152684,21.6772,142.13,142.07,20.12549]
[1723941152899,24.6767,142.18,142.08,10.71]
[1723941153102,187.08189925,142.19,142.12,10.71]
[1723941153395,187.08189925,142.19,142.13,20.25098]
[1723941154094,187.08189925,142.19,142.13,50.25098]
[1723941154991,187.08189925,142.19,142.14,12.24219944]
[1723941155184,187.08189925,142.19,142.15,21.78306858]
[1723941155391,187.08189925,142.19,142.15,20.37647]
[1723941156196,187.08189925,142.19,142.15,50.37647]
[1723941163291,187.08189925,142.19,142.15,50.25098]
[1723941163611,187.08189925,142.19,142.15,50.12549]
[1723941164288,187.08189925,142.19,142.15,20.12549]
[1723941164493,187.08189925,142.19,142.15,0.12549]
[1723941164688,187.08189925,142.19,142.14,30.50196]
[1723941164893,187.08189925,142.19,142.15,20.0]
[1723941166699,187.08189925,142.19,142.16,0.12549]
[1723941170195,187.08189925,142.19,142.16,30.12549]
[1723941170395,187.08189925,142.19,142.17,20.0]
[1723941176316,187.08189925,142.19,142.16,0.12549]
[1723941177831,187.08189925,142.19,142.14,20.37647]
[1723941178124,187.08189925,142.19,142.15,0.12549]
[1723941178321,187.08189925,142.19,142.15,0.25098]
[1723941178802,187.08189925,142.19,142.15,30.25098]
[1723941179003,187.08189925,142.19,142.16,20.0]
[1723941180117,187.08189925,142.19,142.13,20.12549]
[1723941180304,187.08189925,142.19,142.14,30.25098]
[1723941180506,187.08189925,142.19,142.15,20.0]
[1723941181523,187.08189925,142.19,142.12,20.12549]
[1723941181838,187.08189925,142.19,142.13,30.12549]
[1723941182031,187.08189925,142.19,142.14,20.0]
[1723941183925,187.08189925,142.19,142.15,0.12549]
[1723941184130,187.08189925,142.19,142.15,0.25098]
[1723941187034,187.08189925,142.19,142.15,30.25098]
[1723941187236,187.08189925,142.19,142.16,20.0]
[1723941190843,187.08189925,142.19,142.16,21.40660934]
[1723941191040,187.08189925,142.19,142.17,0.12549]
[1723941194417,187.08189925,142.19,142.16,20.0]
[1723941194922,187.08189925,142.19,142.15,0.25098]
[1723941195121,187.08189925,142.19,142.16,0.12549]
[1723941195645,187.08189925,142.19,142.16,0.25098]
[1723941196026,187.08189925,142.19,142.18,10.83549]
[1723941196228,187.08189925,142.19,142.18,76.21196]
[1723941196445,187.08189925,142.19,142.18,106.21196]
[1723941197365,187.08189925,142.19,142.18,61.21196]
[1723941198740,187.08189925,142.19,142.18,106.21196]
[1723941201142,187.08189925,142.19,142.18,112.86406]
[1723941202856,93.97294277,142.19,142.18,112.86406]
[1723941203053,78.44130397,142.19,142.18,119.91306]
[1723941203933,78.44130397,142.19,142.18,95.50196]
[1723941204139,78.44130397,142.19,142.18,106.21196]
[1723941206068,36.79752805,142.19,142.18,106.21196]
[1723941206229,181.06666121,142.27,142.23,6.0298]
[1723941206432,52.10553617,142.27,142.26,10.71]
[1723941206651,52.10553617,142.27,142.26,31.08647]
[1723941206855,52.10553617,142.27,142.26,76.08647]
[1723941207433,52.10553617,142.27,142.26,106.08647]
[1723941208152,38.03979806,142.27,142.26,106.21196]
[1723941210242,0.8782211,142.29,142.26,106.21196]
[1723941210564,0.8782211,142.29,142.27,65.50196]
[1723941210760,0.8782211,142.29,142.27,95.50196]
[1723941211163,0.8782211,142.29,142.28,10.71]
[1723941211377,215.79591677,142.35,142.32,10.71]
[1723941211665,215.79591677,142.35,142.33,20.25098]
[1723941211971,215.79591677,142.35,142.34,10.71]
[1723941212260,215.79591677,142.35,142.34,76.08647]
[1723941212765,180.35858711,142.35,142.34,126.08647]
[1723941212964,113.71744668,142.35,142.34,201.67952863]
[1723941213138,66.45504668,142.35,142.34,158.83952863]
[1723941213337,56.73504668,142.35,142.34,158.83952863]
[1723941213533,30.88880723,142.35,142.34,179.99952863]
[1723941213860,21.58980723,142.35,142.34,222.83952863]
[1723941214063,8.54900001,142.35,142.34,222.83952863]
[1723941214381,11.39,142.38,142.37,20.0]
[1723941214668,15.8134,142.48,142.4,20.0]
[1723941214849,15.8134,142.48,142.42,10.83549]
[1723941215054,15.8134,142.48,142.41,29.88020252]
[1723941215367,10.71,142.47,142.41,20.0]
[1723941215559,10.71,142.47,142.38,20.0]
[1723941215860,26.5234,142.48,142.39,39.62922252]
[1723941216063,15.8134,142.48,142.4,20.0]
[1723941216458,15.8134,142.48,142.41,0.25098]
[1723941216631,15.8134,142.48,142.42,0.25098]
[1723941217038,15.8134,142.48,142.42,0.37647]
[1723941217249,15.8134,142.48,142.42,20.50196]
[1723941217963,15.8134,142.48,142.42,39.79027172]
[1723941218151,15.8134,142.48,142.42,84.79027172]
[1723941218881,129.14116263,142.43,142.42,84.79027172]
[1723941219651,129.14116263,142.43,142.42,114.79027172]
[1723941220480,129.14116263,142.43,142.42,116.19414187]
[1723941220864,129.14116263,142.43,142.42,114.79027172]
[1723941221961,129.14116263,142.43,142.42,105.00569252]
[1723941222296,129.14116263,142.43,142.42,125.37478172]
[1723941222667,129.14116263,142.43,142.42,95.37478172]
[1723941223071,35.27018263,142.43,142.42,96.77855669]
[1723941223378,35.27018263,142.43,142.42,126.77855669]
[1723941223584,35.14469263,142.43,142.42,126.77855669]
[1723941223973,35.14469263,142.43,142.42,125.37478172]
[1723941224978,35.14469263,142.43,142.42,126.77843876]
[1723941225189,30.19815366,142.43,142.42,126.90392876]
[1723941225360,20.36266366,142.43,142.42,137.61392876]
[1723941225679,20.36266366,142.43,142.42,133.95292876]
[1723941225877,260.32333429,142.51,142.47,20.0]
[1723941226190,260.32333429,142.51,142.48,75.71]
[1723941226191,244.50993429,142.51,142.48,75.71]
[1723941226761,244.50993429,142.51,142.48,65.0]
[1723941226975,244.50993429,142.51,142.48,20.0]
[1723941227175,244.50993429,142.51,142.49,0.37647]
[1723941227492,244.50993429,142.51,142.5,0.12549]
[1723941227659,244.50993429,142.51,142.5,1.52876911]
[1723941227860,244.50993429,142.51,142.5,0.37647]
[1723941228161,244.50993429,142.51,142.5,0.25098]
[1723941229288,260.59633429,142.51,142.43,39.28831172]
[1723941230180,260.59633429,142.51,142.43,29.62922252]
[1723941230501,260.59633429,142.51,142.44,0.12549]
[1723941231665,260.59633429,142.51,142.46,0.12549]
[1723941231866,260.59633429,142.51,142.46,30.00569252]
[1723941232295,260.59633429,142.51,142.47,0.12549]
[1723941232589,260.59633429,142.51,142.47,0.37647]
[1723941232889,260.59633429,142.51,142.48,0.12549]
[1723941233063,260.59633429,142.51,142.48,0.37647]
[1723941233389,260.59633429,142.51,142.49,0.12549]
[1723941233600,260.59633429,142.51,142.49,1.65426952]
[1723941233775,260.59633429,142.51,142.5,0.12549]
[1723941234372,260.59633429,142.51,142.5,0.25098]
[1723941234576,260.59633429,142.51,142.5,0.50196]
[1723941234774,260.59633429,142.51,142.5,0.12549]
[1723941235391,260.59633429,142.51,142.49,0.12549]
[1723941235958,260.59633429,142.51,142.44,9.62922252]
[1723941237668,26.51,142.5,142.44,9.62922252]
[1723941237975,16.0864,142.49,142.4,19.28831172]
[1723941238182,16.0864,142.49,142.42,9.659089]
[1723941238366,16.0864,142.49,142.43,9.62922252]
[1723941239592,16.0864,142.49,142.44,1.40375413]
[1723941239786,16.0864,142.49,142.45,0.25098]
[1723941239983,16.0864,142.49,142.45,1.65470907]
[1723941240190,16.0864,142.49,142.45,21.65470907]
[1723941240499,16.0864,142.49,142.46,9.75471252]
[1723941240680,16.0864,142.49,142.47,20.25098]
[1723941241396,16.0864,142.49,142.47,0.25098]
[1723941241900,16.0864,142.49,142.43,20.0]
[1723941242202,16.0864,142.49,142.44,0.50196]
[1723941242575,6.2496,142.48,142.42,19.28831152]
[1723941242907,6.2496,142.48,142.42,9.62922252]
[1723941243396,16.2496,142.48,142.42,9.62922252]
[1723941243595,16.2496,142.48,142.43,9.6590892]
[1723941243784,16.2496,142.48,142.39,16.67822252]
[1723941244174,10.0,142.48,142.4,65.79831172]
[1723941245208,10.0,142.48,142.41,0.25098]
[1723941245503,10.0,142.48,142.43,0.12549]
[1723941245796,10.0,142.48,142.43,20.37647]
[1723941246179,10.0,142.48,142.43,20.25098]
[1723941246385,10.0,142.48,142.43,20.0]
[1723941246577,10.0,142.48,142.43,29.62922252]
[1723941247692,10.0,142.48,142.44,1.52940837]
[1723941247991,10.0,142.48,142.44,1.65489837]
[1723941248179,10.0,142.48,142.44,0.25098]
[1723941250612,15.3203,142.47,142.43,20.0]
[1723941250810,15.3203,142.47,142.39,20.0]
[1723941251012,15.3203,142.47,142.39,64.94952252]
[1723941251181,15.3203,142.47,142.4,45.79831172]
[1723941251381,15.3203,142.47,142.41,20.0]
[1723941251599,15.3203,142.47,142.42,20.69209985]
[1723941251914,15.3203,142.47,142.43,21.40377879]
[1723941252209,15.3203,142.47,142.44,0.37647]
[1723941252392,15.3203,142.47,142.45,0.12549]
[1723941252591,15.3203,142.47,142.46,9.75471252]
[1723941252906,15.3203,142.47,142.46,30.13118252]
[1723941253306,15.3203,142.47,142.46,20.50196]
[1723941253483,15.3203,142.47,142.46,20.37647]
[1723941253683,15.3203,142.47,142.46,20.12549]
[1723941254315,15.3203,142.47,142.46,20.0]
[1723941255215,15.3203,142.47,142.43,20.0]
[1723941255388,15.3203,142.47,142.44,30.37647]
[1723941255582,15.3203,142.47,142.45,20.0]
[1723941256822,15.3203,142.47,142.44,20.25098]
[1723941257219,15.3203,142.47,142.44,20.12549]
[1723941257930,15.3203,142.47,142.44,20.0]
[1723941259012,15.3203,142.47,142.44,37.43709757]
[1723941259231,15.3203,142.47,142.45,9.62922252]
[1723941259412,15.3203,142.47,142.46,20.0]
[1723941260735,15.3203,142.47,142.43,6.40393398]
[1723941261035,15.3203,142.47,142.44,1.4039455]
[1723941261240,15.3203,142.47,142.44,11.03316802]
[1723941262126,15.3203,142.47,142.45,20.0]
[1723941264247,25.9303,142.47,142.41,6.40454458]
[1723941264422,10.61,142.46,142.42,1.40424533]
[1723941264627,10.61,142.46,142.41,9.62922252]
[1723941264927,15.3203,142.47,142.42,1.40401247]
[1723941265340,15.3203,142.47,142.41,9.62922252]
[1723941265531,15.3203,142.47,142.42,1.4040189]
[1723941265856,15.3203,142.47,142.41,9.62922252]
[1723941266541,10.61,142.46,142.41,9.62922252]
[1723941266718,10.61,142.46,142.39,6.40364332]
[1723941267236,15.0182,142.43,142.37,16.03286584]
[1723941267615,10.61,142.42,142.37,6.40364332]
[1723941268617,15.0182,142.43,142.38,20.69288234]
[1723941269113,15.0182,142.43,142.38,19.28831172]
[1723941269312,15.0182,142.43,142.39,1.40433853]
[1723941269535,15.0182,142.43,142.39,30.75211105]
[1723941269726,15.0182,142.43,142.4,10.75210243]
[1723941270962,15.0182,142.43,142.41,20.12549]
[1723941271124,15.0182,142.43,142.42,0.12549]
[1723941271641,15.0182,142.43,142.41,0.25098]
[1723941272454,15.0182,142.43,142.42,0.25098]
[1723941272629,15.0182,142.43,142.42,0.37647]
[1723941272829,15.0182,142.43,142.42,0.25098]
[1723941273035,15.0182,142.43,142.42,0.37647]
[1723941273232,25.0182,142.48,142.43,0.12549]
[1723941273446,25.0182,142.48,142.43,27.19257419]
[1723941273749,25.0182,142.48,142.45,0.12549]
[1723941274054,25.0182,142.48,142.45,0.25098]
[1723941274728,25.0182,142.48,142.45,20.25098]
[1723941274926,25.0182,142.48,142.45,0.25098]
[1723941276245,25.0182,142.48,142.46,0.12549]
[1723941277653,25.0182,142.48,142.45,0.25098]
[1723941277861,25.0182,142.48,142.45,20.25098]
[1723941278740,25.0182,142.48,142.46,20.0]
[1723941279358,25.0182,142.48,142.45,0.25098]
[1723941279836,25.0182,142.48,142.44,6.39785882]
[1723941280048,25.0182,142.48,142.42,6.39785882]
[1723941281060,25.0182,142.48,142.38,6.39785882]
[1723941281373,25.0182,142.48,142.39,35.75028572]
[1723941281562,25.0182,142.48,142.4,6.4025132]
[1723941281861,25.0182,142.48,142.41,26.4025132]
[1723941282077,25.0182,142.48,142.41,35.75028572]
[1723941282375,25.0182,142.48,142.41,29.34777252]
[1723941282538,25.0182,142.48,142.41,35.75028572]
[1723941282945,25.0182,142.48,142.42,17.71662569]
[1723941283147,25.0182,142.48,142.43,30.75176657]
[1723941283642,25.0182,142.48,142.44,9.9100692]
[1723941283841,25.0182,142.48,142.45,21.40376477]
[1723941284151,25.0182,142.48,142.45,21.40375263]
[1723941284361,25.0182,142.48,142.46,1.40375263]
[1723941286482,25.0182,142.48,142.45,35.7456895]
[1723941286483,25.0182,142.48,142.45,26.39791698]
[1723941286654,25.0182,142.48,142.46,0.25098]
[1723941286853,25.0182,142.48,142.45,20.0]
[1723941287278,25.0182,142.48,142.46,0.25098]
[1723941287477,10.0,142.48,142.46,0.25098]
[1723941287779,10.0,142.48,142.46,38.05252315]
[1723941287975,10.0,142.48,142.47,20.0]
[1723941288176,10.0,142.48,142.47,20.25098]
[1723941288881,10.0,142.48,142.47,50.25098]
[1723941290357,10.0,142.48,142.47,50.37647]
[1723941290883,10.0,142.48,142.47,50.50196]
[1723941291998,10.0,142.48,142.47,56.89675631]
[1723941292162,10.0,142.48,142.47,50.50196]
[1723941292486,10.0,142.48,142.47,56.89675631]
[1723941292657,10.0,142.48,142.47,51.90535145]
[1723941292858,10.0,142.48,142.47,58.30014776]
[1723941293280,10.0,142.48,142.47,51.90535145]
[1723941293487,10.0,142.48,142.47,84.84014776]
[1723941293694,10.0,142.48,142.47,156.88914776]
[1723941293982,10.0,142.48,142.47,166.23692028]
[1723941294661,10.0,142.48,142.47,164.83352883]
[1723941295377,10.0,142.48,142.47,155.48575631]
[1723941295985,10.0,142.48,142.47,135.48575631]
[1723941296190,10.0,142.48,142.47,90.36026631]
[1723941296781,10.0,142.48,142.47,50.37647]
[1723941296988,10.0,142.48,142.47,86.26424252]
[1723941297557,10.0,142.48,142.47,106.38973252]